Workbook

Sheet READ ME
A6: This spreadsheet may be used as a tool for determining random locations for QC & QA testing.
A8: QA testing is not required to be performed in a random manner as are the QC tests but
A9: may be at the option of the QA inspector. QA tests shall be performed at any time and in any
A10: location that will assure: 1. That QC is doing their job properly and, 2. That we are receiving
A11: the quality of work for which we are paying.

Sheet DENSITY & THICKNESS
A1: DENSITY & THICKNESS
O2: =ROUND(RAND(),4) -> 0.879 | P2: =ROUND(RAND(),4) -> 0.7905
A3: JOB | D3: ROUTE | G3: COUNTY
A5: LOT | B5: 1 | G5: A | H5: B
A6: TONS IN LOT | D6: 1000 | F6: RANDOM NO.
A7: BEGIN TONNAGE | D7: 0
A8: ENDING TONNAGE | D8: =D7+D6 -> 1000 | F8: T | G8: A | H8: X=T x A | I8: TONNAGE + T
A9: WIDTH "W" | D9: 24 | F9: =D6 -> 1000 | G9: =G6 -> 0 | H9: =F9*G9 -> 0 | I9: =D7+H9 -> 0
F10: W | G10: B | H10: OFFSET = W x B
F11: =D9 -> 24 | G11: =H6 -> 0 | I11: =F11*G11 -> 0
A14: LOT | B14: =B5+1 -> 2 | G14: A | H14: B
A15: TONS IN LOT | D15: =$D$6 -> 1000 | F15: RANDOM NO.
A16: BEGIN TONNAGE | D16: =D8 -> 1000
A17: ENDING TONNAGE | D17: =D8+D15 -> 2000 | F17: T | G17: A | H17: X=T x A | I17: TONNAGE + T
A18: WIDTH "W" | D18: =$D$9 -> 24 | F18: =D15 -> 1000 | G18: =G15 -> 0 | H18: =F18*G18 -> 0 | I18: =H18+D16 -> 1000
F19: W | G19: B | H19: OFFSET = W x B
F20: =D18 -> 24 | G20: =H15 -> 0 | I20: =F20*G20 -> 0
A23: LOT | B23: =B14+1 -> 3 | G23: A | H23: B
A24: TONS IN LOT | D24: =$D$6 -> 1000 | F24: RANDOM NO.
A25: BEGIN TONNAGE | D25: =D17 -> 2000
A26: ENDING TONNAGE | D26: =D25+D24 -> 3000 | F26: T | G26: A | H26: X=T x A | I26: TONNAGE + T
A27: WIDTH "W" | D27: =$D$9 -> 24 | F27: =D24 -> 1000 | G27: =G24 -> 0 | H27: =F27*G27 -> 0 | I27: =H27+D25 -> 2000
F28: W | G28: B | H28: OFFSET = W x B
F29: =D27 -> 24 | G29: =H24 -> 0 | I29: =F29*G29 -> 0
A32: LOT | B32: =B23+1 -> 4 | G32: A | H32: B
A33: TONS IN LOT | D33: =$D$6 -> 1000 | F33: RANDOM NO.
A34: BEGIN TONNAGE | D34: =D26 -> 3000
A35: ENDING TONNAGE | D35: =D34+D33 -> 4000 | F35: T | G35: A | H35: X=T x A | I35: TONNAGE + T
A36: WIDTH "W" | D36: =$D$9 -> 24 | F36: =D33 -> 1000 | G36: =G33 -> 0 | H36: =F36*G36 -> 0 | I36: =H36+D34 -> 3000
F37: W | G37: B | H37: OFFSET = W x B
F38: =D36 -> 24 | G38: =H33 -> 0 | I38: =F38*G38 -> 0
A41: LOT | B41: =B32+1 -> 5 | G41: A | H41: B
A42: TONS IN LOT | D42: =$D$6 -> 1000 | F42: RANDOM NO.
A43: BEGIN TONNAGE | D43: =D35 -> 4000
A44: ENDING TONNAGE | D44: =D43+D42 -> 5000 | F44: T | G44: A | H44: X=T x A | I44: TONNAGE + T
A45: WIDTH "W" | D45: =$D$9 -> 24 | F45: =D42 -> 1000 | G45: =G42 -> 0 | H45: =F45*G45 -> 0 | I45: =H45+D43 -> 4000
F46: W | G46: B | H46: OFFSET = W x B
F47: =D45 -> 24 | G47: =H42 -> 0 | I47: =F47*G47 -> 0
A50: LOT | B50: =B41+1 -> 6 | G50: A | H50: B
A51: TONS IN LOT | D51: =$D$6 -> 1000 | F51: RANDOM NO.
A52: BEGIN TONNAGE | D52: =D44 -> 5000
A53: ENDING TONNAGE | D53: =D52+D51 -> 6000 | F53: T | G53: A | H53: X=T x A | I53: TONNAGE + T
A54: WIDTH "W" | D54: =$D$9 -> 24 | F54: =D51 -> 1000 | G54: =G51 -> 0 | H54: =F54*G54 -> 0 | I54: =H54+D52 -> 5000
F55: W | G55: B | H55: OFFSET = W x B
F56: =D54 -> 24 | G56: =H51 -> 0 | I56: =F56*G56 -> 0
A59: LOT | B59: =B50+1 -> 7 | G59: A | H59: B
A60: TONS IN LOT | D60: =$D$6 -> 1000 | F60: RANDOM NO.
A61: BEGIN TONNAGE | D61: =D53 -> 6000
A62: ENDING TONNAGE | D62: =D61+D60 -> 7000 | F62: T | G62: A | H62: X=T x A | I62: TONNAGE + T
A63: WIDTH "W" | D63: =$D$9 -> 24 | F63: =D60 -> 1000 | G63: =G60 -> 0 | H63: =F63*G63 -> 0 | I63: =H63+D61 -> 6000
F64: W | G64: B | H64: OFFSET = W x B
F65: =D63 -> 24 | G65: =H60 -> 0 | I65: =F65*G65 -> 0
A66: ALWAYS MEASURE OFFSET FROM SAME EDGE

Sheet GRADATION & DELETERIOUS
A1: GRADATION & DELETERIOUS
O2: =ROUND(RAND(),4) -> 0.8698 | P2: =ROUND(RAND(),4) -> 0.9902
A3: JOB | B3: ='DENSITY & THICKNESS'!B3 -> 0 | D3: ROUTE | E3: ='DENSITY & THICKNESS'!E3 -> 0 | G3: COUNTY | H3: ='DENSITY & THICKNESS'!H3 -> 0
A5: LOT | B5: 1 | G5: A | H5: B
A6: TONS IN LOT | D6: 2000 | F6: RANDOM NO.
A7: BEGIN TONNAGE | D7: 0
A8: ENDING TONNAGE | D8: =D7+D6 -> 2000 | F8: T | G8: A | H8: X=T x A | I8: TONNAGE + T
A9: WIDTH "W" | D9: 24 | F9: =D6 -> 2000 | G9: =G6 -> 0 | H9: =F9*G9 -> 0 | I9: =D7+H9 -> 0
F10: W | G10: B | H10: OFFSET = W x B
F11: =D9 -> 24 | G11: =H6 -> 0 | I11: =F11*G11 -> 0
A14: LOT | B14: =B5+1 -> 2 | G14: A | H14: B
A15: TONS IN LOT | D15: =$D$6 -> 2000 | F15: RANDOM NO.
A16: BEGIN TONNAGE | D16: =D8 -> 2000
A17: ENDING TONNAGE | D17: =D8+D15 -> 4000 | F17: T | G17: A | H17: X=T x A | I17: TONNAGE + T
A18: WIDTH "W" | D18: =$D$9 -> 24 | F18: =D15 -> 2000 | G18: =G15 -> 0 | H18: =F18*G18 -> 0 | I18: =H18+D16 -> 2000
F19: W | G19: B | H19: OFFSET = W x B
F20: =D18 -> 24 | G20: =H15 -> 0 | I20: =F20*G20 -> 0
A23: LOT | B23: =B14+1 -> 3 | G23: A | H23: B
A24: TONS IN LOT | D24: =$D$6 -> 2000 | F24: RANDOM NO.
A25: BEGIN TONNAGE | D25: =D17 -> 4000
A26: ENDING TONNAGE | D26: =D25+D24 -> 6000 | F26: T | G26: A | H26: X=T x A | I26: TONNAGE + T
A27: WIDTH "W" | D27: =$D$9 -> 24 | F27: =D24 -> 2000 | G27: =G24 -> 0 | H27: =F27*G27 -> 0 | I27: =H27+D25 -> 4000
F28: W | G28: B | H28: OFFSET = W x B
F29: =D27 -> 24 | G29: =H24 -> 0 | I29: =F29*G29 -> 0
A32: LOT | B32: =B23+1 -> 4 | G32: A | H32: B
A33: TONS IN LOT | D33: =$D$6 -> 2000 | F33: RANDOM NO.
A34: BEGIN TONNAGE | D34: =D26 -> 6000
A35: ENDING TONNAGE | D35: =D34+D33 -> 8000 | F35: T | G35: A | H35: X=T x A | I35: TONNAGE + T
A36: WIDTH "W" | D36: =$D$9 -> 24 | F36: =D33 -> 2000 | G36: =G33 -> 0 | H36: =F36*G36 -> 0 | I36: =H36+D34 -> 6000
F37: W | G37: B | H37: OFFSET = W x B
F38: =D36 -> 24 | G38: =H33 -> 0 | I38: =F38*G38 -> 0
A41: LOT | B41: =B32+1 -> 5 | G41: A | H41: B
A42: TONS IN LOT | D42: =$D$6 -> 2000 | F42: RANDOM NO.
A43: BEGIN TONNAGE | D43: =D35 -> 8000
A44: ENDING TONNAGE | D44: =D43+D42 -> 10000 | F44: T | G44: A | H44: X=T x A | I44: TONNAGE + T
A45: WIDTH "W" | D45: =$D$9 -> 24 | F45: =D42 -> 2000 | G45: =G42 -> 0 | H45: =F45*G45 -> 0 | I45: =H45+D43 -> 8000
F46: W | G46: B | H46: OFFSET = W x B
F47: =D45 -> 24 | G47: =H42 -> 0 | I47: =F47*G47 -> 0
A50: LOT | B50: =B41+1 -> 6 | G50: A | H50: B
A51: TONS IN LOT | D51: =$D$6 -> 2000 | F51: RANDOM NO.
A52: BEGIN TONNAGE | D52: =D44 -> 10000
A53: ENDING TONNAGE | D53: =D52+D51 -> 12000 | F53: T | G53: A | H53: X=T x A | I53: TONNAGE + T
A54: WIDTH "W" | D54: =$D$9 -> 24 | F54: =D51 -> 2000 | G54: =G51 -> 0 | H54: =F54*G54 -> 0 | I54: =H54+D52 -> 10000
F55: W | G55: B | H55: OFFSET = W x B
F56: =D54 -> 24 | G56: =H51 -> 0 | I56: =F56*G56 -> 0
A59: LOT | B59: =B50+1 -> 7 | G59: A | H59: B
A60: TONS IN LOT | D60: =$D$6 -> 2000 | F60: RANDOM NO.
A61: BEGIN TONNAGE | D61: =D53 -> 12000
A62: ENDING TONNAGE | D62: =D61+D60 -> 14000 | F62: T | G62: A | H62: X=T x A | I62: TONNAGE + T
A63: WIDTH "W" | D63: =$D$9 -> 24 | F63: =D60 -> 2000 | G63: =G60 -> 0 | H63: =F63*G63 -> 0 | I63: =H63+D61 -> 12000
F64: W | G64: B | H64: OFFSET = W x B
F65: =D63 -> 24 | G65: =H60 -> 0 | I65: =F65*G65 -> 0
A66: ALWAYS MEASURE OFFSET FROM SAME EDGE

Sheet PLASTICITY INDEX
A1: PLASTICITY INDEX
O2: =ROUND(RAND(),4) -> 0.8168 | P2: =ROUND(RAND(),4) -> 0.755
A3: JOB | B3: ='DENSITY & THICKNESS'!B3 -> 0 | D3: ROUTE | E3: ='DENSITY & THICKNESS'!E3 -> 0 | G3: COUNTY | H3: ='DENSITY & THICKNESS'!H3 -> 0
A5: LOT | B5: 1 | G5: A | H5: B
A6: TONS IN LOT | D6: 10000 | F6: RANDOM NO.
A7: BEGIN TONNAGE | D7: 0
A8: ENDING TONNAGE | D8: =D7+D6 -> 10000 | F8: T | G8: A | H8: X=T x A | I8: TONNAGE + T
A9: WIDTH "W" | D9: 24 | F9: =D6 -> 10000 | G9: =G6 -> 0 | H9: =F9*G9 -> 0 | I9: =D7+H9 -> 0
F10: W | G10: B | H10: OFFSET = W x B
F11: =D9 -> 24 | G11: =H6 -> 0 | I11: =F11*G11 -> 0
A14: LOT | B14: =B5+1 -> 2 | G14: A | H14: B
A15: TONS IN LOT | D15: =$D$6 -> 10000 | F15: RANDOM NO.
A16: BEGIN TONNAGE | D16: =D8 -> 10000
A17: ENDING TONNAGE | D17: =D8+D15 -> 20000 | F17: T | G17: A | H17: X=T x A | I17: TONNAGE + T
A18: WIDTH "W" | D18: =$D$9 -> 24 | F18: =D15 -> 10000 | G18: =G15 -> 0 | H18: =F18*G18 -> 0 | I18: =H18+D16 -> 10000
F19: W | G19: B | H19: OFFSET = W x B
F20: =D18 -> 24 | G20: =H15 -> 0 | I20: =F20*G20 -> 0
A23: LOT | B23: =B14+1 -> 3 | G23: A | H23: B
A24: TONS IN LOT | D24: =$D$6 -> 10000 | F24: RANDOM NO.
A25: BEGIN TONNAGE | D25: =D17 -> 20000
A26: ENDING TONNAGE | D26: =D25+D24 -> 30000 | F26: T | G26: A | H26: X=T x A | I26: TONNAGE + T
A27: WIDTH "W" | D27: =$D$9 -> 24 | F27: =D24 -> 10000 | G27: =G24 -> 0 | H27: =F27*G27 -> 0 | I27: =H27+D25 -> 20000
F28: W | G28: B | H28: OFFSET = W x B
F29: =D27 -> 24 | G29: =H24 -> 0 | I29: =F29*G29 -> 0
A32: LOT | B32: =B23+1 -> 4 | G32: A | H32: B
A33: TONS IN LOT | D33: =$D$6 -> 10000 | F33: RANDOM NO.
A34: BEGIN TONNAGE | D34: =D26 -> 30000
A35: ENDING TONNAGE | D35: =D34+D33 -> 40000 | F35: T | G35: A | H35: X=T x A | I35: TONNAGE + T
A36: WIDTH "W" | D36: =$D$9 -> 24 | F36: =D33 -> 10000 | G36: =G33 -> 0 | H36: =F36*G36 -> 0 | I36: =H36+D34 -> 30000
F37: W | G37: B | H37: OFFSET = W x B
F38: =D36 -> 24 | G38: =H33 -> 0 | I38: =F38*G38 -> 0
A41: LOT | B41: =B32+1 -> 5 | G41: A | H41: B
A42: TONS IN LOT | D42: =$D$6 -> 10000 | F42: RANDOM NO.
A43: BEGIN TONNAGE | D43: =D35 -> 40000
A44: ENDING TONNAGE | D44: =D43+D42 -> 50000 | F44: T | G44: A | H44: X=T x A | I44: TONNAGE + T
A45: WIDTH "W" | D45: =$D$9 -> 24 | F45: =D42 -> 10000 | G45: =G42 -> 0 | H45: =F45*G45 -> 0 | I45: =H45+D43 -> 40000
F46: W | G46: B | H46: OFFSET = W x B
F47: =D45 -> 24 | G47: =H42 -> 0 | I47: =F47*G47 -> 0
A50: LOT | B50: =B41+1 -> 6 | G50: A | H50: B
A51: TONS IN LOT | D51: =$D$6 -> 10000 | F51: RANDOM NO.
A52: BEGIN TONNAGE | D52: =D44 -> 50000
A53: ENDING TONNAGE | D53: =D52+D51 -> 60000 | F53: T | G53: A | H53: X=T x A | I53: TONNAGE + T
A54: WIDTH "W" | D54: =$D$9 -> 24 | F54: =D51 -> 10000 | G54: =G51 -> 0 | H54: =F54*G54 -> 0 | I54: =H54+D52 -> 50000
F55: W | G55: B | H55: OFFSET = W x B
F56: =D54 -> 24 | G56: =H51 -> 0 | I56: =F56*G56 -> 0
A59: LOT | B59: =B50+1 -> 7 | G59: A | H59: B
A60: TONS IN LOT | D60: =$D$6 -> 10000 | F60: RANDOM NO.
A61: BEGIN TONNAGE | D61: =D53 -> 60000
A62: ENDING TONNAGE | D62: =D61+D60 -> 70000 | F62: T | G62: A | H62: X=T x A | I62: TONNAGE + T
A63: WIDTH "W" | D63: =$D$9 -> 24 | F63: =D60 -> 10000 | G63: =G60 -> 0 | H63: =F63*G63 -> 0 | I63: =H63+D61 -> 60000
F64: W | G64: B | H64: OFFSET = W x B
F65: =D63 -> 24 | G65: =H60 -> 0 | I65: =F65*G65 -> 0
A66: ALWAYS MEASURE OFFSET FROM SAME EDGE
